[Event "Titled Tuesday Blitz February 07 Late 2023"]
[White "Leiva, Gianmarco"]
[Black "Danielyan, Vahe"]
[WhiteFideId "3804399"]
[BlackFideId "13304828"]
[WhiteElo "2392"]
[BlackElo "2346"]
[Result "0-1"]
[Round "11"]
[TimeControl "180+2"]
[Date "2023.02.07"]
[WhiteClock "0:00:01"]
[BlackClock "0:01:33"]

1. e4 {[%clk 0:02:27]}  c5 {[%clk 0:02:59]} 2. Nf3 {[%clk 0:02:26]}  d6 {[%clk 0:02:59]} 3. Bb5+ {[%clk 0:02:22]}  Nd7 {[%clk 0:02:56]} 4. O-O {[%clk 0:02:20]}  a6 {[%clk 0:02:55]} 5. Bd3 {[%clk 0:02:20]}  Ngf6 {[%clk 0:02:55]} 6. Re1 {[%clk 0:02:19]}  Rg8 {[%clk 0:02:56]} 7. Bf1 {[%clk 0:01:55]}  g5 {[%clk 0:02:55]} 8. g3 {[%clk 0:01:54]}  g4 {[%clk 0:02:55]} 9. Nh4 {[%clk 0:01:55]}  Ne5 {[%clk 0:02:55]} 10. Bg2 {[%clk 0:01:53]}  e6 {[%clk 0:02:53]} 11. d3 {[%clk 0:01:54]}  Be7 {[%clk 0:02:53]} 12. c3 {[%clk 0:01:54]}  Nh5 {[%clk 0:02:47]} 13. d4 {[%clk 0:01:54]}  cxd4 {[%clk 0:02:40]} 14. cxd4 {[%clk 0:01:54]}  Ng6 {[%clk 0:02:41]} 15. Qxg4 {[%clk 0:01:49]}  Bxh4 {[%clk 0:02:37]} 16. Qxh5 {[%clk 0:01:49]}  Bf6 {[%clk 0:02:36]} 17. Be3 {[%clk 0:01:36]}  Bd7 {[%clk 0:02:34]} 18. Nc3 {[%clk 0:01:34]}  Rc8 {[%clk 0:02:28]} 19. Rad1 {[%clk 0:01:31]}  b5 {[%clk 0:02:29]} 20. e5 {[%clk 0:01:27]}  Be7 {[%clk 0:02:29]} 21. Ne4 {[%clk 0:01:07]}  d5 {[%clk 0:02:28]} 22. Nd6+ {[%clk 0:01:02]}  Bxd6 {[%clk 0:02:28]} 23. exd6 {[%clk 0:01:02]}  Qf6 {[%clk 0:02:28]} 24. Bxd5 {[%clk 0:00:47]}  Rc2 {[%clk 0:02:20]} 25. Be4 {[%clk 0:00:43]}  Rxb2 {[%clk 0:02:18]} 26. Rc1 {[%clk 0:00:32]}  Rxa2 {[%clk 0:02:15]} 27. Rc7 {[%clk 0:00:32]}  Nf4 {[%clk 0:02:10]} 28. Qc5 {[%clk 0:00:10]}  Nh3+ {[%clk 0:02:08]} 29. Kg2 {[%clk 0:00:09]}  Kf8 {[%clk 0:01:36]} 30. Rxd7 {[%clk 0:00:05]}  Nxf2 {[%clk 0:01:36]} 31. Bf3 {[%clk 0:00:01]}  Nd3+ {[%clk 0:01:33]} 0-1


[Site "https://www.chess.com"]

[Event "Titled Tuesday Blitz February 07 Late 2023"]
[White "Gutkin, Ilya"]
[Black "Rosen, Eric"]
[WhiteFideId "16203470"]
[BlackFideId "2032562"]
[WhiteElo "2273"]
[BlackElo "2349"]
[Result "0-1"]
[Round "11"]
[TimeControl "180+2"]
[Date "2023.02.07"]
[WhiteClock "0:00:02"]
[BlackClock "0:00:52"]

1. Nf3 {[%clk 0:03:00]}  c5 {[%clk 0:02:57]} 2. b3 {[%clk 0:03:00]}  Nc6 {[%clk 0:02:54]} 3. Bb2 {[%clk 0:03:00]}  d5 {[%clk 0:02:53]} 4. e3 {[%clk 0:03:00]}  a6 {[%clk 0:02:54]} 5. d4 {[%clk 0:03:00]}  cxd4 {[%clk 0:02:48]} 6. exd4 {[%clk 0:03:00]}  Nf6 {[%clk 0:02:48]} 7. a3 {[%clk 0:02:59]}  Bg4 {[%clk 0:02:48]} 8. Bd3 {[%clk 0:02:58]}  e6 {[%clk 0:02:48]} 9. Nbd2 {[%clk 0:02:56]}  Bd6 {[%clk 0:02:48]} 10. h3 {[%clk 0:02:55]}  Bh5 {[%clk 0:02:48]} 11. O-O {[%clk 0:02:45]}  Qc7 {[%clk 0:02:46]} 12. c4 {[%clk 0:02:44]}  O-O {[%clk 0:02:29]} 13. Qc2 {[%clk 0:02:34]}  Rac8 {[%clk 0:02:13]} 14. c5 {[%clk 0:02:25]}  Bf4 {[%clk 0:02:13]} 15. Rfe1 {[%clk 0:02:18]}  Bg6 {[%clk 0:02:01]} 16. b4 {[%clk 0:02:06]}  Rfd8 {[%clk 0:01:58]} 17. Ne5 {[%clk 0:01:59]}  Nxe5 {[%clk 0:01:46]} 18. dxe5 {[%clk 0:01:58]}  Nd7 {[%clk 0:01:46]} 19. Nf3 {[%clk 0:01:51]}  b6 {[%clk 0:01:44]} 20. g3 {[%clk 0:01:19]}  Bh6 {[%clk 0:01:41]} 21. Qe2 {[%clk 0:00:46]}  Bxd3 {[%clk 0:01:37]} 22. Qxd3 {[%clk 0:00:46]}  bxc5 {[%clk 0:01:37]} 23. Qxa6 {[%clk 0:00:45]}  Nb6 {[%clk 0:01:22]} 24. bxc5 {[%clk 0:00:41]}  Nc4 {[%clk 0:01:15]} 25. Bd4 {[%clk 0:00:08]}  Ra8 {[%clk 0:01:15]} 26. Qb5 {[%clk 0:00:02]}  Rdb8 {[%clk 0:01:15]} 27. Reb1 {[%clk 0:00:01]}  Rxb5 {[%clk 0:01:14]} 28. Rxb5 {[%clk 0:00:02]}  g6 {[%clk 0:00:57]} 29. a4 {[%clk 0:00:02]}  Bg7 {[%clk 0:00:52]} 0-1


[Site "https://www.chess.com"]

[Event "Titled Tuesday Blitz February 07 Late 2023"]
[White "Bilan, Danila"]
[Black "Janaszak, Dawid"]
[WhiteFideId "24161918"]
[BlackFideId "1119206"]
[WhiteElo "2303"]
[BlackElo "2316"]
[Result "0-1"]
[Round "11"]
[TimeControl "180+2"]
[Date "2023.02.07"]
[WhiteClock "0:00:09"]
[BlackClock "0:01:19"]

1. d4 {[%clk 0:03:00]}  d5 {[%clk 0:02:59]} 2. Nf3 {[%clk 0:03:01]}  c5 {[%clk 0:02:58]} 3. c4 {[%clk 0:03:01]}  e6 {[%clk 0:02:58]} 4. cxd5 {[%clk 0:02:59]}  exd5 {[%clk 0:02:59]} 5. Nc3 {[%clk 0:02:59]}  Nc6 {[%clk 0:02:59]} 6. g3 {[%clk 0:02:58]}  Nf6 {[%clk 0:02:56]} 7. Bg2 {[%clk 0:02:58]}  Bd6 {[%clk 0:02:54]} 8. O-O {[%clk 0:02:55]}  O-O {[%clk 0:02:54]} 9. dxc5 {[%clk 0:02:56]}  Bxc5 {[%clk 0:02:54]} 10. Bg5 {[%clk 0:02:56]}  Be6 {[%clk 0:02:50]} 11. Rc1 {[%clk 0:02:53]}  Be7 {[%clk 0:02:44]} 12. Nd4 {[%clk 0:02:45]}  Rc8 {[%clk 0:02:32]} 13. Nxe6 {[%clk 0:02:38]}  fxe6 {[%clk 0:02:33]} 14. Bh3 {[%clk 0:02:38]}  Qd7 {[%clk 0:02:30]} 15. e4 {[%clk 0:02:26]}  d4 {[%clk 0:02:22]} 16. e5 {[%clk 0:02:00]}  Nxe5 {[%clk 0:02:19]} 17. Bxf6 {[%clk 0:01:39]}  Rxf6 {[%clk 0:02:08]} 18. Ne4 {[%clk 0:01:35]}  Rh6 {[%clk 0:02:04]} 19. Bg2 {[%clk 0:01:15]}  Rd8 {[%clk 0:02:02]} 20. f4 {[%clk 0:01:08]}  Nc6 {[%clk 0:02:00]} 21. Re1 {[%clk 0:01:06]}  d3 {[%clk 0:01:58]} 22. Nd2 {[%clk 0:00:54]}  Nd4 {[%clk 0:01:48]} 23. Rc4 {[%clk 0:00:43]}  Ne2+ {[%clk 0:01:48]} 24. Kf2 {[%clk 0:00:30]}  b5 {[%clk 0:01:36]} 25. Re4 {[%clk 0:00:15]}  Rxh2 {[%clk 0:01:29]} 26. Nf1 {[%clk 0:00:12]}  Bc5+ {[%clk 0:01:24]} 27. Kf3 {[%clk 0:00:12]}  Ng1+ {[%clk 0:01:21]} 28. Kg4 {[%clk 0:00:11]}  h5+ {[%clk 0:01:20]} 29. Kg5 {[%clk 0:00:09]}  Qe7+ {[%clk 0:01:19]} 0-1


[Site "https://www.chess.com"]

[Event "Titled Tuesday Blitz February 07 Late 2023"]
[White "Toktomushev, Teimur"]
[Black "Fisher_TheGalactic"]
[WhiteFideId "14176726"]
[WhiteElo "2239"]
[BlackElo "2561"]
[Result "1-0"]
[Round "11"]
[TimeControl "180+2"]
[Date "2023.02.07"]
[WhiteClock "0:00:08"]
[BlackClock "0:00:31"]

1. d4 {[%clk 0:02:59]}  b6 {[%clk 0:03:00]} 2. e4 {[%clk 0:02:58]}  Bb7 {[%clk 0:02:59]} 3. Bd3 {[%clk 0:02:58]}  Nf6 {[%clk 0:02:58]} 4. Nd2 {[%clk 0:02:36]}  e6 {[%clk 0:02:57]} 5. Ngf3 {[%clk 0:02:31]}  d5 {[%clk 0:02:57]} 6. Qe2 {[%clk 0:02:16]}  dxe4 {[%clk 0:02:55]} 7. Nxe4 {[%clk 0:02:17]}  Nxe4 {[%clk 0:02:56]} 8. Bxe4 {[%clk 0:02:18]}  Bxe4 {[%clk 0:02:56]} 9. Qxe4 {[%clk 0:02:19]}  Qd5 {[%clk 0:02:56]} 10. Qxd5 {[%clk 0:02:16]}  exd5 {[%clk 0:02:57]} 11. Bf4 {[%clk 0:02:16]}  c6 {[%clk 0:02:53]} 12. Kd2 {[%clk 0:02:07]}  f6 {[%clk 0:02:52]} 13. Rhe1+ {[%clk 0:01:59]}  Kd7 {[%clk 0:02:52]} 14. Re2 {[%clk 0:01:32]}  h5 {[%clk 0:02:45]} 15. Rae1 {[%clk 0:01:25]}  Na6 {[%clk 0:02:44]} 16. h3 {[%clk 0:01:01]}  g5 {[%clk 0:02:29]} 17. Bh2 {[%clk 0:00:56]}  g4 {[%clk 0:02:29]} 18. Nh4 {[%clk 0:00:49]}  Bh6+ {[%clk 0:02:26]} 19. Kd1 {[%clk 0:00:34]}  Rae8 {[%clk 0:02:27]} 20. Nf5 {[%clk 0:00:31]}  Rxe2 {[%clk 0:02:25]} 21. Rxe2 {[%clk 0:00:32]}  Bf8 {[%clk 0:02:25]} 22. c3 {[%clk 0:00:27]}  c5 {[%clk 0:02:23]} 23. h4 {[%clk 0:00:23]}  b5 {[%clk 0:02:17]} 24. a3 {[%clk 0:00:11]}  b4 {[%clk 0:02:14]} 25. axb4 {[%clk 0:00:12]}  cxb4 {[%clk 0:02:14]} 26. Kc2 {[%clk 0:00:12]}  bxc3 {[%clk 0:02:14]} 27. bxc3 {[%clk 0:00:13]}  Rh7 {[%clk 0:02:03]} 28. Kd3 {[%clk 0:00:11]}  Nc7 {[%clk 0:01:38]} 29. Bxc7 {[%clk 0:00:04]}  Kxc7 {[%clk 0:01:25]} 30. Re6 {[%clk 0:00:05]}  Rf7 {[%clk 0:01:24]} 31. Ne3 {[%clk 0:00:04]}  Bg7 {[%clk 0:00:44]} 32. Nxd5+ {[%clk 0:00:03]}  Kd8 {[%clk 0:00:42]} 33. Ra6 {[%clk 0:00:03]}  f5 {[%clk 0:00:42]} 34. Nf4 {[%clk 0:00:03]}  Bf6 {[%clk 0:00:38]} 35. g3 {[%clk 0:00:02]}  Be7 {[%clk 0:00:25]} 36. d5 {[%clk 0:00:03]}  Bc5 {[%clk 0:00:24]} 37. Ne6+ {[%clk 0:00:03]}  Kc8 {[%clk 0:00:23]} 38. Nxc5 {[%clk 0:00:04]}  f4 {[%clk 0:00:24]} 39. Rc6+ {[%clk 0:00:04]}  Kb8 {[%clk 0:00:23]} 40. Na6+ {[%clk 0:00:04]}  Kb7 {[%clk 0:00:23]} 41. Rc7+ {[%clk 0:00:03]}  Rxc7 {[%clk 0:00:23]} 42. Nxc7 {[%clk 0:00:04]}  fxg3 {[%clk 0:00:23]} 43. fxg3 {[%clk 0:00:04]}  Kxc7 {[%clk 0:00:24]} 44. c4 {[%clk 0:00:04]}  Kd6 {[%clk 0:00:22]} 45. Kd4 {[%clk 0:00:04]}  a5 {[%clk 0:00:23]} 46. c5+ {[%clk 0:00:05]}  Kd7 {[%clk 0:00:23]} 47. Kc4 {[%clk 0:00:06]}  Kc7 {[%clk 0:00:23]} 48. Kb5 {[%clk 0:00:06]}  Kd7 {[%clk 0:00:24]} 49. Kxa5 {[%clk 0:00:06]}  Ke7 {[%clk 0:00:25]} 50. Kb5 {[%clk 0:00:07]}  Kf6 {[%clk 0:00:26]} 51. c6 {[%clk 0:00:07]}  Ke5 {[%clk 0:00:27]} 52. c7 {[%clk 0:00:07]}  Ke4 {[%clk 0:00:28]} 53. c8=Q {[%clk 0:00:08]}  Kf3 {[%clk 0:00:28]} 54. d6 {[%clk 0:00:07]}  Kg2 {[%clk 0:00:29]} 55. d7 {[%clk 0:00:08]}  Kxg3 {[%clk 0:00:30]} 56. d8=Q {[%clk 0:00:09]}  Kh3 {[%clk 0:00:30]} 57. Qd3+ {[%clk 0:00:08]}  Kxh4 {[%clk 0:00:31]} 58. Qcd8# {[%clk 0:00:08]} 1-0


[Site "https://www.chess.com"]

[Event "Titled Tuesday Blitz February 07 Late 2023"]
[White "Rustemov, Alexander"]
[Black "Van Dael, Siem"]
[WhiteFideId "4119002"]
[BlackFideId "1049771"]
[WhiteElo "2525"]
[BlackElo "2319"]
[Result "1-0"]
[Round "11"]
[TimeControl "180+2"]
[Date "2023.02.07"]
[WhiteClock "0:01:07"]
[BlackClock "0:01:34"]

1. c4 {[%clk 0:03:00]}  Nf6 {[%clk 0:02:58]} 2. Nc3 {[%clk 0:03:00]}  g6 {[%clk 0:02:56]} 3. e4 {[%clk 0:02:59]}  d6 {[%clk 0:02:57]} 4. d4 {[%clk 0:02:59]}  Bg7 {[%clk 0:02:58]} 5. f3 {[%clk 0:02:58]}  O-O {[%clk 0:02:58]} 6. Nge2 {[%clk 0:02:57]}  c5 {[%clk 0:02:58]} 7. d5 {[%clk 0:02:56]}  e6 {[%clk 0:02:57]} 8. Ng3 {[%clk 0:02:55]}  exd5 {[%clk 0:02:57]} 9. cxd5 {[%clk 0:02:56]}  a6 {[%clk 0:02:56]} 10. a4 {[%clk 0:02:56]}  h5 {[%clk 0:02:56]} 11. Bg5 {[%clk 0:02:54]}  Nbd7 {[%clk 0:02:56]} 12. Be2 {[%clk 0:02:54]}  Qc7 {[%clk 0:02:53]} 13. O-O {[%clk 0:02:53]}  Nh7 {[%clk 0:02:52]} 14. Be3 {[%clk 0:02:52]}  h4 {[%clk 0:02:51]} 15. Nh1 {[%clk 0:02:52]}  f5 {[%clk 0:02:51]} 16. Qd2 {[%clk 0:02:50]}  Ne5 {[%clk 0:02:44]} 17. Nf2 {[%clk 0:02:47]}  Rb8 {[%clk 0:02:33]} 18. f4 {[%clk 0:02:40]}  Ng4 {[%clk 0:02:31]} 19. Nxg4 {[%clk 0:02:38]}  fxg4 {[%clk 0:02:32]} 20. Rad1 {[%clk 0:02:29]}  Nf6 {[%clk 0:02:25]} 21. e5 {[%clk 0:02:28]}  dxe5 {[%clk 0:02:18]} 22. d6 {[%clk 0:02:28]}  Qc6 {[%clk 0:02:19]} 23. fxe5 {[%clk 0:02:26]}  Ne4 {[%clk 0:02:19]} 24. Rxf8+ {[%clk 0:02:09]}  Kxf8 {[%clk 0:02:16]} 25. Nxe4 {[%clk 0:01:51]}  Qxe4 {[%clk 0:02:15]} 26. Bxc5 {[%clk 0:01:47]}  Qxe5 {[%clk 0:02:11]} 27. b4 {[%clk 0:01:38]}  Bd7 {[%clk 0:02:05]} 28. a5 {[%clk 0:01:35]}  Re8 {[%clk 0:02:00]} 29. Bc4 {[%clk 0:01:23]}  g5 {[%clk 0:01:37]} 30. Rf1+ {[%clk 0:01:20]}  Bf6 {[%clk 0:01:34]} 31. Bd4 {[%clk 0:01:07]} 1-0


[Site "https://www.chess.com"]

[Event "Titled Tuesday Blitz February 07 Late 2023"]
[White "Ozen, Bahadir"]
[Black "Prem, Pranav"]
[WhiteFideId "6337058"]
[BlackFideId "30901057"]
[WhiteElo "2369"]
[BlackElo "2061"]
[Result "1/2-1/2"]
[Round "11"]
[TimeControl "180+2"]
[Date "2023.02.07"]
[WhiteClock "0:00:17"]
[BlackClock "0:00:08"]

1. g3 {[%clk 0:03:00]}  d5 {[%clk 0:02:54]} 2. Nf3 {[%clk 0:03:00]}  Nf6 {[%clk 0:02:53]} 3. Bg2 {[%clk 0:03:00]}  c5 {[%clk 0:02:52]} 4. O-O {[%clk 0:02:50]}  Nc6 {[%clk 0:02:51]} 5. d4 {[%clk 0:02:50]}  e6 {[%clk 0:02:48]} 6. c4 {[%clk 0:02:50]}  Be7 {[%clk 0:02:41]} 7. cxd5 {[%clk 0:02:48]}  Nxd5 {[%clk 0:02:42]} 8. Nc3 {[%clk 0:02:40]}  O-O {[%clk 0:02:23]} 9. a3 {[%clk 0:02:19]}  cxd4 {[%clk 0:02:14]} 10. Nxd4 {[%clk 0:02:16]}  Nxc3 {[%clk 0:02:14]} 11. bxc3 {[%clk 0:02:17]}  Bd7 {[%clk 0:02:00]} 12. Rb1 {[%clk 0:02:17]}  Qc8 {[%clk 0:01:53]} 13. Nb5 {[%clk 0:01:43]}  Rd8 {[%clk 0:01:37]} 14. Nd6 {[%clk 0:01:43]}  Bxd6 {[%clk 0:01:34]} 15. Qxd6 {[%clk 0:01:44]}  Be8 {[%clk 0:01:25]} 16. Qf4 {[%clk 0:01:41]}  b6 {[%clk 0:01:06]} 17. Be3 {[%clk 0:01:33]}  Rb8 {[%clk 0:00:46]} 18. c4 {[%clk 0:01:28]}  e5 {[%clk 0:00:37]} 19. Qe4 {[%clk 0:01:23]}  Qe6 {[%clk 0:00:28]} 20. Rfd1 {[%clk 0:01:05]}  Qe7 {[%clk 0:00:18]} 21. a4 {[%clk 0:00:50]}  Na5 {[%clk 0:00:16]} 22. c5 {[%clk 0:00:46]}  Rxd1+ {[%clk 0:00:12]} 23. Rxd1 {[%clk 0:00:47]}  bxc5 {[%clk 0:00:12]} 24. Qd5 {[%clk 0:00:35]}  h6 {[%clk 0:00:08]} 25. Bxc5 {[%clk 0:00:34]}  Qf6 {[%clk 0:00:04]} 26. Bd6 {[%clk 0:00:31]}  Rd8 {[%clk 0:00:05]} 27. Qxa5 {[%clk 0:00:18]}  Rxd6 {[%clk 0:00:05]} 28. Rxd6 {[%clk 0:00:17]}  Qxd6 {[%clk 0:00:06]} 29. Qxa7 {[%clk 0:00:18]}  Qd1+ {[%clk 0:00:07]} 30. Bf1 {[%clk 0:00:18]}  Qxa4 {[%clk 0:00:08]} 31. Qxa4 {[%clk 0:00:17]}  Bxa4 {[%clk 0:00:08]} 1/2-1/2


[Site "https://www.chess.com"]

[Event "Titled Tuesday Blitz February 07 Late 2023"]
[White "Kaplan, Avi Harrison"]
[Black "Korchmar, Vasiliy"]
[WhiteFideId "30934559"]
[BlackFideId "24131750"]
[WhiteElo "2146"]
[BlackElo "2438"]
[Result "0-1"]
[Round "11"]
[TimeControl "180+2"]
[Date "2023.02.07"]
[WhiteClock "0:00:05"]
[BlackClock "0:00:13"]

1. d4 {[%clk 0:03:00]}  d5 {[%clk 0:03:00]} 2. c4 {[%clk 0:03:01]}  c6 {[%clk 0:03:00]} 3. Nc3 {[%clk 0:03:00]}  Nf6 {[%clk 0:02:59]} 4. cxd5 {[%clk 0:03:01]}  cxd5 {[%clk 0:02:59]} 5. Bf4 {[%clk 0:03:01]}  Qb6 {[%clk 0:02:49]} 6. e3 {[%clk 0:02:59]}  e6 {[%clk 0:02:47]} 7. a3 {[%clk 0:02:58]}  Bd6 {[%clk 0:02:32]} 8. Bg3 {[%clk 0:02:49]}  a6 {[%clk 0:02:23]} 9. Nf3 {[%clk 0:02:43]}  O-O {[%clk 0:01:57]} 10. Bd3 {[%clk 0:02:43]}  Bxg3 {[%clk 0:01:41]} 11. hxg3 {[%clk 0:02:42]}  Nc6 {[%clk 0:01:38]} 12. Ne5 {[%clk 0:02:14]}  g6 {[%clk 0:01:35]} 13. Na4 {[%clk 0:01:55]}  Qd8 {[%clk 0:01:16]} 14. Nxc6 {[%clk 0:01:46]}  bxc6 {[%clk 0:01:17]} 15. Rc1 {[%clk 0:01:47]}  e5 {[%clk 0:01:13]} 16. dxe5 {[%clk 0:01:42]}  Ng4 {[%clk 0:01:13]} 17. O-O {[%clk 0:01:33]}  Qg5 {[%clk 0:01:10]} 18. Be2 {[%clk 0:01:25]}  h5 {[%clk 0:00:39]} 19. Rxc6 {[%clk 0:01:07]}  Nxe5 {[%clk 0:00:32]} 20. f4 {[%clk 0:01:02]}  Qxg3 {[%clk 0:00:31]} 21. fxe5 {[%clk 0:01:02]}  Qxe3+ {[%clk 0:00:31]} 22. Rf2 {[%clk 0:00:59]}  Bd7 {[%clk 0:00:31]} 23. Rd6 {[%clk 0:00:59]}  Bxa4 {[%clk 0:00:26]} 24. Qxa4 {[%clk 0:00:58]}  Qxe5 {[%clk 0:00:25]} 25. Qf4 {[%clk 0:00:40]}  Qxb2 {[%clk 0:00:24]} 26. Rxd5 {[%clk 0:00:31]}  Qxa3 {[%clk 0:00:24]} 27. Rg5 {[%clk 0:00:20]}  Rac8 {[%clk 0:00:15]} 28. Kh2 {[%clk 0:00:18]}  Kh7 {[%clk 0:00:12]} 29. Bxh5 {[%clk 0:00:15]}  a5 {[%clk 0:00:05]} 30. Qh4 {[%clk 0:00:03]}  Qb4 {[%clk 0:00:03]} 31. Rg4 {[%clk 0:00:02]}  Qd6+ {[%clk 0:00:03]} 32. g3 {[%clk 0:00:02]}  Kg7 {[%clk 0:00:03]} 33. Qg5 {[%clk 0:00:02]}  Rh8 {[%clk 0:00:03]} 34. Rh4 {[%clk 0:00:02]}  Rc5 {[%clk 0:00:02]} 35. Qg4 {[%clk 0:00:01]}  Rcxh5 {[%clk 0:00:01]} 36. Rxh5 {[%clk 0:00:01]}  Rxh5+ {[%clk 0:00:02]} 37. Kg1 {[%clk 0:00:02]}  Qd5 {[%clk 0:00:02]} 38. Qf3 {[%clk 0:00:01]}  Qxf3 {[%clk 0:00:01]} 39. Rxf3 {[%clk 0:00:02]}  Re5 {[%clk 0:00:01]} 40. Ra3 {[%clk 0:00:02]}  Rc5 {[%clk 0:00:02]} 41. Kg2 {[%clk 0:00:03]}  Kf6 {[%clk 0:00:02]} 42. Kh3 {[%clk 0:00:03]}  Ke6 {[%clk 0:00:03]} 43. Re3+ {[%clk 0:00:04]}  Kf6 {[%clk 0:00:03]} 44. Rf3+ {[%clk 0:00:05]}  Rf5 {[%clk 0:00:03]} 45. Ra3 {[%clk 0:00:06]}  Re5 {[%clk 0:00:04]} 46. Rb3 {[%clk 0:00:06]}  Ke6 {[%clk 0:00:04]} 47. Rb6+ {[%clk 0:00:06]}  Ke7 {[%clk 0:00:05]} 48. Rb7+ {[%clk 0:00:06]}  Kf8 {[%clk 0:00:05]} 49. Ra7 {[%clk 0:00:06]}  Kg7 {[%clk 0:00:06]} 50. Kg4 {[%clk 0:00:06]}  Rb5 {[%clk 0:00:06]} 51. Kh3 {[%clk 0:00:05]}  g5 {[%clk 0:00:06]} 52. Ra6 {[%clk 0:00:05]}  f6 {[%clk 0:00:06]} 53. Ra8 {[%clk 0:00:04]}  Kg6 {[%clk 0:00:06]} 54. Rg8+ {[%clk 0:00:04]}  Kf5 {[%clk 0:00:07]} 55. Ra8 {[%clk 0:00:04]}  Rc5 {[%clk 0:00:08]} 56. Rb8 {[%clk 0:00:03]}  Ke5 {[%clk 0:00:06]} 57. Re8+ {[%clk 0:00:01]}  Kd6 {[%clk 0:00:05]} 58. Rf8 {[%clk 0:00:02]}  Ke7 {[%clk 0:00:06]} 59. Ra8 {[%clk 0:00:03]}  Rb5 {[%clk 0:00:06]} 60. Ra7+ {[%clk 0:00:03]}  Ke6 {[%clk 0:00:07]} 61. Ra6+ {[%clk 0:00:04]}  Kf7 {[%clk 0:00:07]} 62. Ra8 {[%clk 0:00:04]}  Re5 {[%clk 0:00:04]} 63. Ra7+ {[%clk 0:00:04]}  Kg6 {[%clk 0:00:04]} 64. Ra8 {[%clk 0:00:05]}  Rf5 {[%clk 0:00:04]} 65. Rg8+ {[%clk 0:00:04]}  Kf7 {[%clk 0:00:04]} 66. Ra8 {[%clk 0:00:04]}  Re5 {[%clk 0:00:04]} 67. Ra7+ {[%clk 0:00:03]}  Kg8 {[%clk 0:00:04]} 68. Ra8+ {[%clk 0:00:03]}  Kh7 {[%clk 0:00:04]} 69. Ra7+ {[%clk 0:00:04]}  Kh6 {[%clk 0:00:05]} 70. Ra6 {[%clk 0:00:03]}  Rf5 {[%clk 0:00:05]} 71. Kg4 {[%clk 0:00:03]}  Rf1 {[%clk 0:00:04]} 72. Rxa5 {[%clk 0:00:02]}  Kg6 {[%clk 0:00:05]} 73. Ra6 {[%clk 0:00:02]}  Rb1 {[%clk 0:00:05]} 74. Kh3 {[%clk 0:00:02]}  Rb4 {[%clk 0:00:06]} 75. Ra8 {[%clk 0:00:02]}  Kf5 {[%clk 0:00:06]} 76. Ra5+ {[%clk 0:00:02]}  Ke6 {[%clk 0:00:07]} 77. Ra6+ {[%clk 0:00:02]}  Kf7 {[%clk 0:00:07]} 78. Ra7+ {[%clk 0:00:03]}  Kg6 {[%clk 0:00:08]} 79. Ra6 {[%clk 0:00:03]}  Re4 {[%clk 0:00:08]} 80. Ra8 {[%clk 0:00:03]}  Re5 {[%clk 0:00:09]} 81. Rg8+ {[%clk 0:00:03]}  Kf5 {[%clk 0:00:10]} 82. Ra8 {[%clk 0:00:04]}  Ke4 {[%clk 0:00:07]} 83. Ra4+ {[%clk 0:00:04]}  Kd5 {[%clk 0:00:08]} 84. Ra6 {[%clk 0:00:04]}  f5 {[%clk 0:00:06]} 85. Rg6 {[%clk 0:00:03]}  g4+ {[%clk 0:00:06]} 86. Kh4 {[%clk 0:00:03]}  Ke4 {[%clk 0:00:03]} 87. Ra6 {[%clk 0:00:03]}  Kf3 {[%clk 0:00:03]} 88. Ra3+ {[%clk 0:00:02]}  Kf2 {[%clk 0:00:03]} 89. Kg5 {[%clk 0:00:01]}  Rd5 {[%clk 0:00:02]} 90. Ra2+ {[%clk 0:00:01]}  Kf3 {[%clk 0:00:02]} 91. Ra3+ {[%clk 0:00:01]}  Ke4 {[%clk 0:00:03]} 92. Ra4+ {[%clk 0:00:01]}  Ke5 {[%clk 0:00:04]} 93. Ra3 {[%clk 0:00:01]}  Rc5 {[%clk 0:00:04]} 94. Re3+ {[%clk 0:00:01]}  Kd4 {[%clk 0:00:04]} 95. Re1 {[%clk 0:00:02]}  Kd3 {[%clk 0:00:04]} 96. Rf1 {[%clk 0:00:02]}  Ke4 {[%clk 0:00:04]} 97. Rf4+ {[%clk 0:00:02]}  Ke3 {[%clk 0:00:05]} 98. Rxf5 {[%clk 0:00:02]}  Rxf5+ {[%clk 0:00:05]} 99. Kxf5 {[%clk 0:00:02]}  Kf3 {[%clk 0:00:05]} 100. Ke5 {[%clk 0:00:02]}  Kxg3 {[%clk 0:00:06]} 101. Ke4 {[%clk 0:00:03]}  Kh2 {[%clk 0:00:06]} 102. Ke3 {[%clk 0:00:03]}  g3 {[%clk 0:00:07]} 103. Kf3 {[%clk 0:00:04]}  g2 {[%clk 0:00:08]} 104. Kf2 {[%clk 0:00:05]}  g1=Q+ {[%clk 0:00:09]} 105. Ke2 {[%clk 0:00:06]}  Qg2+ {[%clk 0:00:09]} 106. Ke1 {[%clk 0:00:02]}  Kg3 {[%clk 0:00:09]} 107. Kd1 {[%clk 0:00:03]}  Kf3 {[%clk 0:00:10]} 108. Kc1 {[%clk 0:00:03]}  Ke3 {[%clk 0:00:11]} 109. Kb1 {[%clk 0:00:04]}  Kd3 {[%clk 0:00:11]} 110. Ka1 {[%clk 0:00:05]}  Kc3 {[%clk 0:00:12]} 111. Kb1 {[%clk 0:00:05]}  Qb2# {[%clk 0:00:13]} 0-1


[Site "https://www.chess.com"]